Cogmind - Beta 15 @@@ ROGUE MODE // 2025.08.31 @ 23:52:50 Player: Sooner535 Result: Destroyed by D-53 Grenadier with Mini Grenade Launcher Performance ------------- Evolutions (0) 0 Regions Visited (2) 400 Robots Destroyed (12) 60 Value Destroyed (313) 313 Prototype IDs (2) 40 Alien Tech Used (0) 0 Bonus (0) 0 TOTAL SCORE: 813 Bonus ------- None Cogmind --------- Core Integrity 0/250 Matter 285/300 Energy 16/100 System Corruption 0% Temperature Cool (0) Movement Walking (120) Location -10/Mines Parts ------- > --- POWER (1) -------- (None) > --- PROPULSION (2) --- Aluminum Leg > --- UTILITY (2) ------ Structural Scanner > --- WEAPON (2) ------- Small Laser > --- INVENTORY (5) ---- (None) Peak State ------------ > --- POWER ------------ (None) > --- PROPULSION ------- Aluminum Leg Aluminum Leg > --- UTILITY ---------- Small Battery Structural Scanner > --- WEAPON ----------- Small Laser Small Laser > --- INVENTORY -------- Aluminum Leg Aluminum Leg Aluminum Leg Small Laser [Rating: 6] Favorites ----------- Power Light Ion Engine Engine Light Ion Engine Propulsion Aluminum Leg Leg Aluminum Leg Wheel Wheel Utility Structural Scanner Device Structural Scanner Storage Small Battery Weapon Small Laser Energy Gun Small Laser Build | -11 -10 -10 ------- Run | Yrd Mat Min Slots Evolved . | . . . Power . | . . . Propulsion . | . . . Utility . | . . . Weapon . | . . . Parts Attached 16 | 5 4 7 Power 2 | 1 1 . Engine 2 | 1 1 . Core . | . . . Reactor . | . . . Propulsion 7 | 2 2 3 Treads . | . . . Leg 5 | . 2 3 Wheel 2 | 2 . . Hover . | . . . Flight . | . . . Utility 2 | . . 2 Device 1 | . . 1 Storage 1 | . . 1 Processor . | . . . Hackware . | . . . Protection . | . . . Artifact . | . . . Weapon 5 | 2 1 2 Energy Gun 5 | 2 1 2 Energy Cannon . | . . . Ballistic Gun . | . . . Ballistic Cannon . | . . . Launcher . | . . . Special Weapon . | . . . Impact Weapon . | . . . Slashing Weapon . | . . . Piercing Weapon . | . . . Special Melee Weapon . | . . . Unidentified Prototypes . | . . . Parts Lost 11 | . 2 9 Power 2 | . 1 1 Propulsion 4 | . . 4 Utility 1 | . . 1 Weapon 4 | . 1 3 Highest Loss Streak 7 | . 2 7 To Critical Strikes . | . . . Average Backups 3 | . 3 4 Power . | . . . Propulsion 2 | . 2 2 Utility . | . . . Weapon . | . . 1 Tool/Special . | . . . Unused Backups . | . . . Power . | . . . Propulsion . | . . . Utility . | . . . Weapon . | . . . Tool/Special . | . . . Average Slot Usage (%) 68 | . 67 69 Engine 7 | . 12 4 Leg 15 | . 3 26 Wheel 11 | . 24 . Device 3 | . . 7 Storage 2 | . . 4 Energy Gun 26 | . 26 26 Peak Build Rating 6 | 5 5 6 Average Rating 4 | 3 4 4 On Entrance 3 | . 5 5 Naked Turns . | . . . Heaviest Build 7 | 5 7 7 Greatest Support 20 | 20 20 20 Greatest Overweight (x) . | . . . Average Overweight (x) . | . . . Largest Inventory Capacity 5 | 5 5 5 Average Capacity 5 | 5 5 5 Most Carried 5 | 3 5 5 Average Carried 3 | . 3 3 Final Capacity 5 | 5 5 5 Final Carried 5 | 3 5 . Class Distribution -------------------- 50% | Scavenger-Mutant 49% | Mutant Dominant Class ---------------- Mutant | -10/Materials Scavenger-Mutant | -10/Mines Resources | -11 -10 -10 ----------- Run | Yrd Mat Min Matter Collected 335 | 234 66 35 Remotely . | . . . Salvage Created 441 | 35 299 107 Parts 25 | 4 16 5 Haulers Intercepted . | . . . Recyclers Shooed . | . . . Parts Field Recycled . | . . . Retrieved Matter . | . . . Parts Self-Destructed . | . . . Prevented . | . . . Kills | -11 -10 -10 ------- Run | Yrd Mat Min Combat Hostiles Destroyed 14 | 1 6 7 Guns 14 | 1 6 7 Classes Destroyed 4 | 1 1 2 Operator 2 | . 2 . Swarmer 3 | . . 3 Grunt 7 | 1 6 . Assembled 4 | . . 4 Best Kill Streak 4 | 1 4 4 Combat Bots Only 4 | 1 4 4 Max Kills in Single Turn 1 | 1 1 1 Gunslinging . | . . . Exploded . | . . . Melee . | . . . Uniques/NPCs Destroyed . | . . . Combat | -11 -10 -10 -------- Run | Yrd Mat Min Hostile Shots Fired 95 | 4 30 61 Missed 24 | 1 9 14 Hits 71 | 3 21 47 Melee 8 | . . 8 Projectile 63 | 3 21 39 AOE 7 | . . 7 Damage Taken 1036 | 35 273 728 Core 255 | . 81 174 Absorbed by Shields . | . . . Core Remaining (%) 100 | 100 . . Volleys Fired 60 | 3 29 28 Largest 2 | 2 2 2 Hottest 80 | 80 80 80 Shots Fired 109 | 6 49 54 Gun 109 | 6 49 54 Cannon . | . . . Launcher . | . . . Special . | . . . Kinetic . | . . . Thermal 109 | 6 49 54 Explosive . | . . . Electromagnetic . | . . . Robot Hit Streak 12 | 2 12 5 Robot Miss Streak 6 | 3 3 6 Penetration Max . | . . . Secondary Targets 5 | . 2 3 Max Gunslinging Chain 1 | . 1 1 Shots Hit Robots 69 | 2 40 27 Core Hits 31 | 2 17 12 Critical Kills . | . . . Critical Parts Destroyed . | . . . Critical Strikes . | . . . Melee Attacks . | . . . Impact . | . . . Slashing . | . . . Piercing . | . . . Sneak Attacks . | . . . Combat Hostiles . | . . . Follow-up Attacks . | . . . Damage Inflicted 763 | 23 438 302 Guns 763 | 23 438 302 Cannons . | . . . Explosions . | . . . Melee . | . . . Ramming . | . . . Kinetic . | . . . Thermal 763 | 23 438 302 Explosive . | . . . Electromagnetic . | . . . Impact . | . . . Slashing . | . . . Piercing . | . . . Highest Corruption . | . . . Average Corruption . | . . . Corruption Purged . | . . . Corruption Blocked . | . . . Overload Shots . | . . . Overflow Damage . | . . . Projectiles . | . . . Explosions . | . . . Melee . | . . . Knockbacks . | . . . Impact . | . . . Kinetic . | . . . Secondary . | . . . Self-Inflicted Damage . | . . . Shots . | . . . Rammed . | . . . Targets Rammed . | . . . Kicked . | . . . Crushed . | . . . Highest Temperature 132 | 72 132 93 Average Temperature 48 | 39 53 43 Received Heat Transfer 168 | 18 150 . Siege Activations . | . . . Martial Activations . | . . . Shielding Activations . | . . . Robots Disrupted . | . . . Combat Hostiles . | . . . Robots Corrupted . | . . . Combat Hostiles . | . . . Parts Fried . | . . . Impact Corruptions . | . . . Robots Melted . | . . . Combat Hostiles . | . . . Parts Melted . | . . . Heat Transferred 1750 | 50 1000 700 Parts Sabotaged . | . . . Parts Stolen . | . . . Parts Stripped . | . . . Power Chain Reactions . | . . . Alert | -11 -10 -10 ------- Run | Yrd Mat Min Maximum Alert Level . | . . . Low Security (%) 100 | 100 100 100 Level 1 . | . . . Level 2 . | . . . Level 3 . | . . . Level 4 . | . . . Level 5 . | . . . High Security . | . . . Max Security . | . . . Peak Influence 80 | 10 80 50 Initial 27 | . 6 27 Average 18 | 2 26 15 Influence Increases 254 | 20 164 70 Destroy 0b10 Robot/C 200 | 20 120 60 Destroy 0b10 Robot/NC 10 | . 10 . Destroy Leader 30 | . 20 10 Successful Hack 14 | . 14 . Influence Decreases 254 | 10 104 140 Entered New Map 47 | . 4 43 Time Decay 180 | 10 90 80 Lost Part 27 | . 10 17 Squads Dispatched 3 | . 3 . Investigation 1 | . 1 . Extermination . | . . . Reinforcement 2 | . 2 . Assault . | . . . Garrison . | . . . Intercept . | . . . Searches Triggered . | . . . Construction Impeded . | . . . Haulers Reinforced . | . . . Active Scanning Responses . | . . . Cargo Convoy Interrupts . | . . . Stealth | -11 -10 -10 --------- Run | Yrd Mat Min Distress Signals 1 | . 1 . Communications Jammed . | . . . Distress Signals . | . . . Times Spotted 27 | 1 11 15 Peak Tracking Total 8 | 1 5 8 Tactical Retreats 1 | . . 1 Traps | -11 -10 -10 ------- Run | Yrd Mat Min Traps Triggered 1 | . 1 . Indirectly . | . . . Trap Hack Attempts . | . . . Triggered . | . . . Disarmed . | . . . Reprogrammed . | . . . Reused . | . . . Traps Extracted . | . . . Installed . | . . . Triggered . | . . . Machines | -11 -10 -10 ---------- Run | Yrd Mat Min Machines Disabled . | . . . Max in Single Turn . | . . . Machines Repaired . | . . . Machines Dismantled . | . . . Machines Sabotaged . | . . . Overloaded Fab Kills . | . . . Hacking | -11 -10 -10 --------- Run | Yrd Mat Min Machines Accessed 2 | . 2 . Terminals 2 | . 2 . Fabricators . | . . . Repair Stations . | . . . Recycling Units . | . . . Scanalyzers . | . . . Garrison Access . | . . . Total Hacks 8 | . 8 . Successful 5 | . 5 . Failed 3 | . 3 . Catastrophic . | . . . Database Lockouts . | . . . Manual . | . . . Terminals 8 | . 8 . Fabricators . | . . . Repair Stations . | . . . Recycling Units . | . . . Scanalyzers . | . . . Garrison Access . | . . . Terminal Hacks 5 | . 5 . Record 1 | . 1 . Robot Analysis 1 | . 1 . Prototype ID Bank 1 | . 1 . Alert Level 1 | . 1 . Locate Traps 1 | . 1 . Fabricator Hacks . | . . . Repair Station Hacks . | . . . Recycling Unit Hacks . | . . . Scanalyzer . | . . . Garrison Access Hacks . | . . . Unauthorized Hacks . | . . . Terminals . | . . . Fabricators . | . . . Repair Stations . | . . . Recycling Units . | . . . Scanalyzers . | . . . Garrison Access . | . . . Data Cores Recovered . | . . . Used . | . . . Hacking Detections 2 | . 2 . Full Trace Events . | . . . Feedback Events . | . . . Feedback Blocked . | . . . Robot Schematics Acquired . | . . . Robots Built . | . . . Authchips . | . . . Time . | . . . Total Robot Build Rating . | . . . Part Schematics Acquired . | . . . Parts Built . | . . . Authchips . | . . . Time . | . . . Total Part Build Rating . | . . . Parts Repaired . | . . . Time . | . . . Parts Recycled . | . . . Recycled Matter . | . . . Retrieved Matter . | . . . Retrieved Components . | . . . Parts Scanalyzed . | . . . Part Schematics Acquired . | . . . Parts Damaged . | . . . Bothacking | -11 -10 -10 ------------ Run | Yrd Mat Min Used RIF Installer . | . . . Robots Hacked . | . . . Non-combat . | . . . Combat . | . . . Robot Hacks Applied . | . . . Relay Couplers Released . | . . . Fabnet Peak Effective % . | . . . Robots Rewired . | . . . Allies Hacked . | . . . Hacks Repelled . | . . . Allies | -11 -10 -10 -------- Run | Yrd Mat Min Total Allies . | . . . Largest Group . | . . . Highest-Rated Group . | . . . Highest-Rated Ally . | . . . Total Orders . | . . . Ally Attacks . | . . . Total Damage . | . . . Kills . | . . . Allies Corrupted . | . . . Allies Melted . | . . . Intel | -11 -10 -10 ------- Run | Yrd Mat Min Active Infowar (turns) 115 | . . 115 Structural 115 | . . 115 Robot Analysis Total 1 | . 1 . Derelict Logs Recovered . | . . . Drone Launches . | . . . Drone Recoveries . | . . . Exploration | -11 -10 -10 ------------- Run | Yrd Mat Min Turns Passed 512 | 75 209 228 Spaces Moved 323 | 74 136 113 Core 19 | 19 . . Treads . | . . . Legs 126 | . 13 113 Wheels 178 | 55 123 . Hover . | . . . Flight . | . . . Fastest Speed 50 | 50 80 120 Average Speed 93 | 72 83 120 Slowest Speed 120 | 80 120 120 Overloaded Moves . | . . . Propulsion Burnouts . | . . . Robots Hopped . | . . . Potential Cave-ins . | . . . Cave-ins Triggered . | . . . Exploration Rate (%) 21 | 7 27 30 Regions Visited 2 Branch Regions 1 Pre-discovered Areas 1 | . . 1 Known Exits Taken . | . . . Unknown Exits Taken 2 | 1 1 . Scrap Searched 1 | . . 1 Spaces Dug . | . . . Terrain Destroyed . | . . . Melee . | . . . Projectile . | . . . AOE . | . . . Terrain Rammed . | . . . Walls Destroyed . | . . . Machines Disabled . | . . . Actions | -11 -10 -10 --------- Run | Yrd Mat Min Total 425 | 89 183 153 Wait 6 | . 3 3 Move 321 | 73 135 113 Hop . | . . . Pick Up 17 | 8 7 2 Fast Attach . | . . . Attach 15 | 5 3 7 Detach 1 | . 1 . Swap 2 | . 2 . Drop 3 | . 3 . Fire 60 | 3 29 28 Melee . | . . . Ram . | . . . Kick . | . . . Crush . | . . . Escape Stasis . | . . . Rewire . | . . . Trap . | . . . Miscellaneous . | . . . Route ------- -11/Scrapyard -10/Materials -10/Mines (discovered 1 exit: [*Exi]) History --------- Turn | Location | Event 2 | -11/Scrapyard | Met Revision 17 51 | -11/Scrapyard | Discovered new exit (range 8) 76 | -11/Scrapyard | Entered Materials 201 | -10/Materials | Discovered new exit (range 16) 285 | -10/Materials | Entered Mines 286 | -10/Mines | Learned location of Storage (-8) 296 | -10/Mines | Deemed a non-threat by the Exiles lab entrance 297 | -10/Mines | Discovered new exit (range 5) 349 | -10/Mines | Core integrity fell below 50% 455 | -10/Mines | Assembled infested the area 495 | -10/Mines | Core integrity fell below 20% 513 | -10/Mines | Destroyed by D-53 Grenadier with Mini Grenade Launcher Last Messages --------------- 00491_ as-08255 destroyed. 00492_ Acquired 20 matter. 00494_ Knocked back. 00499_ as-24769 destroyed. 00499_ Switching to secondary target: as-51049. 00500_ Knocked back. 00507_ C-30 ARC bursts open, deploying its payload. 00507_ D-53 Grenadier unfolds itself. 00507_ Sml. Laser destroyed. 00508_ The unstable cave ceiling collapses. 00509_ as-51049 destroyed. 00509_ as-60460 destroyed. 00511_ as-75240 destroyed. 00511_ Aluminum Leg destroyed. 00511_ as-84068 destroyed. 00511_ as-80410 destroyed. 00511_ Aluminum Leg destroyed. 00512_ The unstable cave ceiling collapses. 00513_ Sml. Laser destroyed. Map ----- +----------------------------------------------------+ | ???????????????????????????#### """ ###?? | | ??????????????????????????#### """ ## ###?? | | ??????????????????????????### ########??? | | ????????????????????????#### ########??? | | ???????????????????????### ## ###??????? | | ???????????????????????## ### ##??????? | | ???????????????????????## #### ###??????? | | ???????????????????????## ##### ####??????? | | ???????????????????????## ###### ###???????? | | ???????????????????????### ####### #####?????? | | ???????????????????????############ #####?????? | | ????????????????????????###### ### ##?????? | | ???????????????????????????## ## ##?????? | | ???????????????????????????## ###### ##?????? | | ???????????????????????????## ###### ##?????? | | ???????????## ############### ##### ##?????? | | ???????????## ############### ##?????? | | ???????????## ##### ##?????? | | ???????????## ##### ##?????? | | ???????????######## ###### ###?????????? | | ?????????????##### ### ###?????????? | | ??????????####### ### ##?????????? | | ??????????####### d ## ##?????????? | | ??????????## d """ ##?????????? | | ??????????## ### % """ ###?????????? | | ??????????## ### # @ """ ####?????????? | | ??????????????## # ###??????????? | | ???????????? ## ### ? ##???????????? | | ??????????? #########? ###???????????? | | ???????????? ######???####???????????? | | ??????????? ???????????????????????????? | | ?????????????##### ???????????????????????????? | | ?????????????###### ??????????????????????????? | | ????????????????### ??????????????????????????? | | ??????????????????? ?????????????????????????? | | ??????????????????? ?????????????????????????? | | ??????????????????? ????????????????????????? | | ???????????????????## ????????????????????????? | | ???????????????????###?????????????????????????? | | ???????????????????????????????????????????????? | | ???????????????????????????????????????????????? | | ???????????????????????????????????????????????? | | ???????????????????????????????????????????????? | | | | | | | | | | | | | | | +----------------------------------------------------+ Best States ------------- Heat Dissipation 25 Energy Generation 10 Energy Capacity 250 Matter Stores 300 Matter Capacity 300 Sight Range 16 Terrain Scan Density 10 Evasion (%) 55 Item Schematics ----------------- None Robot Schematics ------------------ None Fabricated ------------ Nothing Repaired ---------- Nothing Alien Tech Used ----------------- None Achievements -------------- None Challenges ------------ None Game ------ Seed CompositeHeartMesh Manual? 0 Play Time 00:15:05 Cumulative 2.3 hours Start 2025.08.31 @ 21:46:54 End 2025.08.31 @ 23:52:50 Sessions 1 Manual Loads 0 Difficulty Rogue Special Mode None Game No. 3 Rogue 3 Adventurer 0 Explorer 0 Win Type - Total 0 Types 0/0/0/0/0/0/0/0/0/0 Lore% 2 Gallery% 4 Achievement% 4 Wizard Run 0 Options --------- Layout 1 ASCII 0 Keyboard 0 Movement Mouse Keybinds 0 Fullscreen 1 Font 24/Terminus Map View 25x17 Zoom Use 99% Tactical HUD 1 Map Filters NONE Filters NONE Steam 1 RUN: 1fb5aab2-33d8-4acd-b1b4-274140a62120